Cogmind - Beta 16 @@@ ROGUE MODE // 2025.10.30 @ 16:20:27 Player: Naughtyusername Result: Self-destructed Performance ------------- Evolutions (4) 2000 Regions Visited (12) 2400 Robots Destroyed (215) 1075 Value Destroyed (7257) 7257 Prototype IDs (28) 560 Alien Tech Used (0) 0 Bonus (2268) 2268 TOTAL SCORE: 15560 Bonus ------- High Alert Combat Kills 899 Follower Combat Kills 289 Registered with UFD 300 Met Optimus in HQ 500 Met Data Miner 300 Friendly Fire -20 Cogmind --------- Core Integrity 70/850 Matter 264/300 Energy 18/600 System Corruption 39% Temperature Cool (0) Movement Walking (112) Location -6/Data Miner Parts ------- > --- POWER (2) -------- (None) > --- PROPULSION (5) --- Armored Leg Armored Leg Improved VSS Leg Enhanced Flexi-carbon Leg > --- UTILITY (6) ------ High-capacity Storage Unit Advanced Energy Well Advanced Signal Interpreter Core Analyzer Light Regenerative Plating (fused) > --- WEAPON (2) ------- Cooled Plasma Cannon > --- INVENTORY (20) --- Enhanced Flexi-carbon Leg Enhanced Flexi-carbon Leg Improved Cooling System Machine Analyzer Improved Sensor Array Faulty Experimental Targeting Computer Experimental Targeting Computer Transmission Jammer Layered Medium Armor Plating Layered Medium Armor Plating Advanced Force Field High-powered Shock Rifle Force Rifle Phase Cannon Cooled Plasma Cannon Heavy Phase Cannon Heavy Missile Launcher CPS Tube (2) CPS Tube (2) DRS Beacon (Ready) Peak State ------------ > --- POWER ------------ Micro Nuclear Core Light Angular Momentum Engine > --- PROPULSION ------- Armored Leg Armored Leg Armored Leg Armored Leg Improved VSS Leg > --- UTILITY ---------- High-capacity Storage Unit Advanced Signal Interpreter Core Analyzer Experimental Propulsion Shielding Light Regenerative Plating Advanced Force Field > --- WEAPON ----------- Cooled Plasma Cannon Cooled Plasma Cannon > --- INVENTORY -------- Light Antimatter Reactor Flexi-carbon Leg Improved Cooling System Improved Cooling System Machine Analyzer Improved Sensor Array Experimental Targeting Computer Experimental Targeting Computer Transmission Jammer Layered Medium Armor Plating High-powered Shock Rifle High-powered Shock Rifle Force Rifle Cooled Plasma Cannon Improved Proton Missile Launcher Heavy Missile Launcher CPS Tube CPS Tube DRS Beacon [Rating: 85] Favorites ----------- Power Cooled Ion Engine Engine Cooled Ion Engine Power Core Micro Nuclear Core Reactor Antimatter Reactor Propulsion Armored Wheel Treads Light Treads Leg Armored Leg Wheel Armored Wheel Utility High-capacity Storage Unit Device Improved Heat Sink Storage High-capacity Storage Unit Processor Core Analyzer Protection Light Regenerative Plating Weapon Cooled Plasma Cannon Energy Gun Spread Laser Energy Cannon Cooled Plasma Cannon Ballistic Gun Assault Rifle Launcher Mini Grenade Launcher Special Weapon Plasma Cutter Impact Weapon Impact Mace Build | -11 -10 -10 -9 -9 -9 -9 -6 -6 -6 -6 -6 -6 ------- Run | Yrd Mat Min Mat Sto Rec Scr Fac Was Fac Low Low Dat Slots Evolved 8 | . . . 2 . . . 6 . . . . . Power 1 | . . . . . . . 1 . . . . . Propulsion 3 | . . . 1 . . . 2 . . . . . Utility 4 | . . . 1 . . . 3 . . . . . Weapon . | . . . . . . . . . . . . . Parts Attached 119 | 7 12 1 18 15 . . 17 . 35 6 . 8 Power 15 | 1 1 . 1 2 . . 3 . 5 . . 2 Engine 12 | 1 1 . 1 2 . . 3 . 4 . . . Core 1 | . . . . . . . . . 1 . . . Reactor 2 | . . . . . . . . . . . . 2 Propulsion 27 | 2 2 1 3 2 . . 4 . 11 1 . 1 Treads 2 | 2 . . . . . . . . . . . . Leg 17 | . . . . . . . 4 . 11 1 . 1 Wheel 8 | . 2 1 3 2 . . . . . . . . Hover . | . . . . . . . . . . . . . Flight . | . . . . . . . . . . . . . Utility 38 | 2 5 . 6 2 . . 7 . 9 4 . 3 Device 17 | 1 3 . 3 1 . . 1 . 5 3 . . Storage 5 | 1 2 . . . . . . . . 1 . 1 Processor 8 | . . . . . . . 5 . 3 . . . Hackware . | . . . . . . . . . . . . . Protection 8 | . . . 3 1 . . 1 . 1 . . 2 Artifact . | . . . . . . . . . . . . . Weapon 39 | 2 4 . 8 9 . . 3 . 10 1 . 2 Energy Gun 12 | . 2 . 3 4 . . . . 1 . . 2 Energy Cannon 16 | . . . 2 4 . . 3 . 6 1 . . Ballistic Gun 3 | 2 . . 1 . . . . . . . . . Ballistic Cannon . | . . . . . . . . . . . . . Launcher 6 | . 2 . 2 . . . . . 2 . . . Special Weapon 1 | . . . . 1 . . . . . . . . Impact Weapon 1 | . . . . . . . . . 1 . . . Slashing Weapon . | . . . . . . . . . . . . . Piercing Weapon . | . . . . . . . . . . . . . Special Melee Weapon . | . . . . . . . . . . . . . Unidentified Prototypes 14 | . . . 2 2 . . 3 . 5 . . 2 Corrupted Parts 2 | . . . . . . . . . . . . 2 System Corruption 13 | . . . . . . . . . . . . 13 Parts Lost 38 | . 1 1 7 3 . . 2 2 13 . . 9 Power 8 | . 1 . . . . . . . 3 . . 4 Propulsion 13 | . . 1 1 2 . . 2 2 3 . . 2 Utility 8 | . . . 2 1 . . . . 4 . . 1 Weapon 9 | . . . 4 . . . . . 3 . . 2 Highest Loss Streak 4 | . 1 1 1 1 . . 1 2 3 . . 4 To Critical Strikes . | . . . . . . . . . . . . . Average Backups 17 | . 8 8 17 19 20 19 18 18 18 18 19 18 Power 1 | . . . . 2 2 2 1 1 . 1 1 . Propulsion 1 | . . 1 3 1 1 1 . . . 1 1 1 Utility 5 | . 1 2 6 3 3 3 3 6 7 8 8 8 Weapon 7 | . 4 4 6 12 13 10 10 8 6 6 7 6 Tool/Special . | . . . . . . . . . . . . . Unused Backups 31 | . 1 . 4 1 . 1 9 . 6 . . 9 Power 1 | . . . . . . . 1 . . . . . Propulsion 2 | . . . . . . . . . . . . 2 Utility 10 | . 1 . 2 1 . . . . 2 . . 4 Weapon 16 | . . . 2 . . 1 8 . 4 . . 1 Tool/Special 2 | . . . . . . . . . . . . 2 Average Slot Usage (%) 98 | . 98 100 99 99 100 100 94 97 98 100 100 90 Engine 10 | . 13 14 11 11 11 11 12 13 11 6 6 3 Core 1 | . . . . . . . . . 1 6 6 3 Treads 1 | . 15 . . . . . . . . . . . Leg 13 | . . . . . . . 7 19 30 33 33 32 Wheel 17 | . 12 28 32 32 33 33 21 11 . . . . Device 10 | . 12 14 11 10 11 11 10 10 7 6 13 7 Storage 9 | . 14 14 11 11 11 11 6 6 6 6 6 6 Processor 7 | . . . . . . . 11 20 20 13 13 13 Protection 7 | . . . 10 11 11 11 9 2 3 12 6 11 Energy Gun 6 | . 26 28 13 7 . . . . . . . 4 Energy Cannon 11 | . . . 8 13 22 22 12 13 12 13 12 4 Peak Build Rating 85 | 7 12 12 24 33 33 33 65 65 85 85 79 81 Average Rating 45 | 5 10 11 19 27 33 32 52 62 70 80 78 73 On Entrance 40 | . 7 12 12 22 33 33 33 62 63 85 81 79 Avg Prop Armor Cover (%) 10 | . . . . . . . 5 14 16 . . 16 Naked Turns . | . . . . . . . . . . . . . Heaviest Build 93 | 15 52 50 62 65 65 65 85 83 91 93 80 87 Greatest Support 91 | 40 40 24 36 36 36 36 48 24 89 83 83 91 Greatest Overweight (x) 6 | . 2 2 1 2 1 1 3 6 6 1 . 2 Average Overweight (x) . | . . 2 1 1 1 1 1 3 . . . . Largest Inventory Capacity 20 | 8 20 20 20 20 20 20 20 20 20 20 20 20 Average Capacity 19 | 7 10 20 20 20 20 20 20 20 20 20 20 20 Most Carried 20 | 1 10 9 20 20 20 20 20 20 20 20 20 20 Average Carried 17 | . 8 8 17 19 20 19 19 19 19 19 19 19 Final Capacity 20 | 8 20 20 20 20 20 20 20 20 20 20 20 20 Final Carried 20 | 1 9 9 16 20 20 20 20 20 19 20 20 20 Class Distribution -------------------- 98% | Mutant Dominant Class ---------------- Mutant | -10/Materials Mutant | -10/Mines Mutant | -9/Materials Mutant | -9/Storage Mutant | -9/Recycling Mutant | -9/Scraptown Mutant | -6/Factory Mutant | -6/Waste Mutant | -6/Factory Mutant | -6/Lower Caves Mutant | -6/Lower Caves Mutant | -6/Data Miner Resources | -11 -10 -10 -9 -9 -9 -9 -6 -6 -6 -6 -6 -6 ----------- Run | Yrd Mat Min Mat Sto Rec Scr Fac Was Fac Low Low Dat Matter Collected 2693 | 307 156 66 262 324 26 . 320 . 659 299 162 112 Remotely . | . . . . . . . . . . . . . Salvage Created 8987 | 104 578 78 2077 1331 580 . 1101 . 2779 . 36 323 Parts 444 | 8 32 1 116 61 19 . 59 . 127 . 4 17 Haulers Intercepted 21 | . 2 . 6 6 . . 2 . 5 . . . Recyclers Shooed 6 | . . . . . . . 4 . 2 . . . Parts Field Recycled . | . . . . . . . . . . . . . Retrieved Matter . | . . . . . . . . . . . . . Parts Self-Destructed . | . . . . . . . . . . . . . Prevented . | . . . . . . . . . . . . . Parts Restored . | . . . . . . . . . . . . . Kills | -11 -10 -10 -9 -9 -9 -9 -6 -6 -6 -6 -6 -6 ------- Run | Yrd Mat Min Mat Sto Rec Scr Fac Was Fac Low Low Dat Combat Hostiles Destroyed 151 | . 16 2 47 22 3 . 17 . 41 . . 3 Guns 59 | . 14 2 34 9 . . . . . . . . Cannons 68 | . . . 13 12 3 . 12 . 27 . . 1 AOE 20 | . 2 . . 1 . . 5 . 12 . . . Classes Destroyed 15 | 2 6 . 3 1 . . 1 . 2 . . . Worker 10 | . 1 . 2 . . . 2 . 5 . . . Builder 11 | . . . 1 1 . . 3 . 6 . . . Tunneler 2 | 2 . . . . . . . . . . . . Hauler 21 | . 2 . 6 6 . . 2 . 5 . . . Recycler 13 | 1 1 . 1 1 5 . 2 . 2 . . . Mechanic 1 | . 1 . . . . . . . . . . . Watcher 6 | . 1 . 2 1 . . . . 2 . . . Swarmer 18 | . 3 . . . . . 7 . 8 . . . Saboteur 1 | . . . . . . . . . 1 . . . Grunt 87 | . 13 2 37 14 . . 8 . 13 . . . Brawler 4 | . . . . 1 . . 1 . 2 . . . Duelist 4 | . . . 1 1 . . . . 2 . . . Sentry 23 | . . . 9 6 3 . . . 5 . . . Hunter 1 | . . . . . . . . . 1 . . . Programmer 10 | . . . . . . . 1 . 9 . . . Enhanced Grunt 3 | . . . . . . . . . . . . 3 Decomposer 2 | . . . . . . . . . . . 2 . Best Kill Streak 10 | 3 8 2 6 5 4 . 7 . 10 . . 1 Combat Bots Only 6 | . 3 2 5 3 1 . 4 . 6 . . 1 Max Kills in Single Turn 4 | 1 3 1 2 2 1 . 4 . 3 . 1 1 Gunslinging 1 | . . . 1 1 . . . . . . . . Exploded 2 | . 2 . . 1 . . 2 . 2 . . . Melee . | . . . . . . . . . . . . . Uniques/NPCs Destroyed . | . . . . . . . . . . . . . Combat | -11 -10 -10 -9 -9 -9 -9 -6 -6 -6 -6 -6 -6 -------- Run | Yrd Mat Min Mat Sto Rec Scr Fac Was Fac Low Low Dat Hostile Shots Fired 709 | . 77 7 137 60 6 . 49 . 309 . . 64 Missed 218 | . 24 2 35 18 . . 11 . 103 . . 25 Hits 491 | . 53 5 102 42 6 . 38 . 206 . . 39 Melee 14 | . . . 3 2 . . . . 9 . . . Projectile 477 | . 53 5 99 40 6 . 38 . 197 . . 39 Critical Strikes 10 | . . . 3 1 . . . . 6 . . . Part Disruptions 2 | . . . . . . . . . . . . 2 Damage Taken 9155 | . 625 68 1350 601 89 . 681 270 3647 . . 1824 Core 1214 | . 136 16 204 64 14 . 70 79 448 . . 183 Absorbed by Shields . | . . . . . . . . . . . . . Redirected to Shielding 126 | . . . . . . . . . 126 . . . Regen/Repaired (Parts) 806 | . . . 101 78 16 . 76 17 483 . . 35 Core Remaining (%) 56 | 100 . 39 . . . 29 . . . . . . Volleys Fired 596 | 9 52 6 114 90 10 . 63 13 140 31 6 62 Largest 2 | 2 2 2 2 2 2 . 2 1 2 2 2 2 Hottest 170 | 40 130 130 136 168 168 . 170 35 170 125 125 120 Shots Fired 1038 | 18 101 12 225 174 20 . 104 13 254 35 13 69 Gun 401 | 18 98 12 152 68 . . . . 1 . . 52 Cannon 612 | . . . 73 98 20 . 100 13 246 35 13 14 Launcher 25 | . 3 . . 8 . . 4 . 7 . . 3 Special . | . . . . . . . . . . . . . Kinetic 18 | 18 . . . . . . . . . . . . Thermal 943 | . 98 12 225 166 20 . 100 13 247 35 13 14 Explosive 22 | . 3 . . 8 . . 4 . 7 . . . Electromagnetic 55 | . . . . . . . . . . . . 55 Robot Hit Streak 24 | 4 9 5 24 13 7 . 24 . 11 . 2 5 Robot Miss Streak 9 | 2 9 5 7 7 1 . 4 . 4 . 1 5 Penetration Max . | . . . . . . . . . . . . . Secondary Targets 5 | . . . 4 1 . . . . . . . . Max Gunslinging Chain 1 | . . . 1 1 . . . . . . . . Shots Hit Robots 660 | 11 87 11 194 107 14 . 65 . 141 . 2 28 Core Hits 576 | 4 99 16 213 77 8 . 49 . 92 . 1 17 Critical Kills 3 | . . . . . . . . . 3 . . . Critical Parts Destroyed . | . . . . . . . . . . . . . Critical Strikes 6 | . . . . 3 . . . . 3 . . . Burn 3 | . . . . 3 . . . . . . . . Meltdown 3 | . . . . . . . . . 3 . . . Melee Attacks . | . . . . . . . . . . . . . Impact . | . . . . . . . . . . . . . Slashing . | . . . . . . . . . . . . . Piercing . | . . . . . . . . . . . . . Sneak Attacks . | . . . . . . . . . . . . . Combat Hostiles . | . . . . . . . . . . . . . Follow-up Attacks . | . . . . . . . . . . . . . Damage Inflicted 17820 | 142 1218 162 3489 2325 515 . 2745 . 6656 . 69 499 Guns 4602 | 142 1078 162 2101 876 . . . . . . . 243 Cannons 10031 | . . . 1261 1190 515 . 2030 . 4770 . 66 199 Explosions 3093 | . 131 . 127 259 . . 715 . 1804 . . 57 Melee . | . . . . . . . . . . . . . Ramming 94 | . 9 . . . . . . . 82 . 3 . Kinetic 142 | 142 . . . . . . . . . . . . Thermal 14625 | . 1078 162 3489 2066 515 . 2180 . 4870 . 66 199 Explosive 2659 | . 131 . . 259 . . 565 . 1704 . . . Electromagnetic 300 | . . . . . . . . . . . . 300 Impact . | . . . . . . . . . . . . . Slashing . | . . . . . . . . . . . . . Piercing . | . . . . . . . . . . . . . Highest Corruption 39 | . . . . . . . . 19 26 26 26 39 Average Corruption 23 | . . . . . . . . 9 21 26 26 30 Corruption Purged 5 | . . . . . . . . . 5 . . . Corruption Blocked . | . . . . . . . . . . . . . Effects 269 | . . . . . . . . 4 131 54 52 28 Message Errors 76 | . . . . . . . . . 35 17 17 7 Matter Fused 55 | . . . . . . . . 1 32 11 7 4 Heat Flow Errors 24 | . . . . . . . . 1 8 6 7 2 Energy Discharges 33 | . . . . . . . . . 15 4 7 7 Parts Rejected 2 | . . . . . . . . . 2 . . . Parts Fused 2 | . . . . . . . . . 1 1 . . Data Loss (minor) 25 | . . . . . . . . 1 9 3 8 4 Data Loss (major) 12 | . . . . . . . . 1 5 4 2 . Misfires 10 | . . . . . . . . . 6 2 2 . Alerts 8 | . . . . . . . . . 3 4 1 . Misdirections 5 | . . . . . . . . . 3 . . 2 Weapon Failures 17 | . . . . . . . . . 12 2 1 2 Overload Shots 1 | . . . . . . . . . 1 . . . Overflow Damage 289 | . . . 9 13 13 . 51 . 177 . 26 . Projectiles 163 | . . . 9 13 13 . 14 . 88 . 26 . Explosions 126 | . . . . . . . 37 . 89 . . . Melee . | . . . . . . . . . . . . . Knockbacks 1 | . . . . . . . . . 1 . . . Impact 1 | . . . . . . . . . 1 . . . Kinetic . | . . . . . . . . . . . . . Secondary . | . . . . . . . . . . . . . Self-Inflicted Damage 440 | . . . . 8 . . . . 432 . . . Shots 7 | . . . . 1 . . . . 6 . . . Rammed 1 | . 1 . . . . . . . . . . . Targets Rammed 9 | . 1 . . . . . . . 7 . 1 . Kicked 8 | . . . . . . . . . 7 . 1 . Crushed . | . . . . . . . . . . . . . Highest Temperature 468 | . 468 237 367 363 196 . 312 185 442 463 247 216 Average Temperature 100 | . 139 110 104 105 75 . 94 95 66 118 100 109 Received Heat Transfer 2376 | . 318 42 615 279 27 . 234 . 861 . . . Effects 22 | . 5 . 3 3 . . . . 5 4 . 2 Shutdowns 4 | . 1 . 1 1 . . . . . 1 . . Energy Bleed 8 | . 2 . 2 2 . . . . 2 . . . Interference 8 | . . . . . . . . . 3 3 . 2 Short Circuit 1 | . 1 . . . . . . . . . . . Damage (minor) 1 | . 1 . . . . . . . . . . . Siege Activations . | . . . . . . . . . . . . . Martial Activations . | . . . . . . . . . . . . . Shielding Activations . | . . . . . . . . . . . . . Robots Disrupted . | . . . . . . . . . . . . . Combat Hostiles . | . . . . . . . . . . . . . Robots Corrupted 2 | . . . . . . . . . . . . 2 Combat Hostiles 2 | . . . . . . . . . . . . 2 Parts Fried 2 | . . . . . . . . . . . . 2 Impact Corruptions . | . . . . . . . . . . . . . Robots Melted 4 | . . . . 1 . . . . 3 . . . Combat Hostiles 2 | . . . . . . . . . 2 . . . Parts Melted 33 | . 2 . 5 4 1 . 2 . 17 . . 2 Heat Transferred 20420 | . 1355 205 4849 3663 684 . 2733 . 6394 . 87 450 Parts Sabotaged . | . . . . . . . . . . . . . Parts Stolen . | . . . . . . . . . . . . . Parts Stripped . | . . . . . . . . . . . . . Power Chain Reactions . | . . . . . . . . . . . . . Alert | -11 -10 -10 -9 -9 -9 -9 -6 -6 -6 -6 -6 -6 ------- Run | Yrd Mat Min Mat Sto Rec Scr Fac Was Fac Low Low Dat Maximum Alert Level 4 | . 1 . 3 3 1 . 2 . 4 . . . Low Security (%) 43 | 100 91 100 27 . . . 59 100 41 . . . Level 1 21 | . 8 . 19 15 100 . 17 . 15 . . . Level 2 20 | . . . 43 29 . . 23 . 21 . . . Level 3 13 | . . . 9 54 . . . . 19 . . . Level 4 . | . . . . . . . . . 1 . . . Level 5 . | . . . . . . . . . . . . . High Security . | . . . . . . . . . . . . . Max Security . | . . . . . . . . . . . . . Peak Influence 1200 | 10 292 105 725 939 393 . 490 168 1200 . . . Initial 351 | . . 105 . 299 351 . . 168 58 . . . Average 331 | 2 75 23 391 679 315 . 187 133 400 . . . Influence Increases 6331 | 15 638 50 1505 1223 369 . 697 6 1828 . . . Destroy 0b10 Robot/C 3140 | . 320 40 940 620 60 . 340 . 820 . . . Destroy 0b10 Robot/NC 340 | 15 30 . 60 60 30 . 45 . 100 . . . Destroy Leader 826 | . 66 10 266 196 . . 54 . 234 . . . Allied During Kill 108 | . . . . 107 1 . . . . . . . Successful Hack 184 | . 39 . 47 16 38 . 14 . 30 . . . Select Force Hacks 420 | . 60 . 60 60 240 . . . . . . . Disable Machine 750 | . 15 . 75 120 . . 150 . 390 . . . Destroy Structure 413 | . 18 . 27 44 . . 94 6 224 . . . Lose Combat Pursuer 150 | . 90 . 30 . . . . . 30 . . . Influence Decreases 6331 | 15 368 320 795 1031 1055 216 215 404 716 883 313 . Entered New Map 2187 | . . 165 . 411 551 216 . 314 26 443 61 . Time Decay 3384 | 15 358 145 575 440 334 . 195 70 560 440 252 . Lost Part 290 | . 10 10 70 30 . . 20 20 130 . . . Lost Ally 20 | . . . . . 20 . . . . . . . Purge Threat 450 | . . . 150 150 150 . . . . . . . Squads Dispatched 47 | . 5 . 11 8 . . 6 . 17 . . . Investigation 20 | . 4 . 9 3 . . 1 . 3 . . . Extermination 7 | . . . . . . . 1 . 6 . . . Reinforcement 10 | . 1 . 2 2 . . 3 . 2 . . . Assault 4 | . . . . 2 . . . . 2 . . . Garrison 6 | . . . . 1 . . 1 . 4 . . . Intercept . | . . . . . . . . . . . . . Searches Triggered . | . . . . . . . . . . . . . Construction Impeded 2 | . . . . . . . 2 . . . . . Haulers Reinforced 2 | . . . . . . . 1 . 1 . . . Active Scanning Responses . | . . . . . . . . . . . . . Cargo Convoy Interrupts . | . . . . . . . . . . . . . Stealth | -11 -10 -10 -9 -9 -9 -9 -6 -6 -6 -6 -6 -6 --------- Run | Yrd Mat Min Mat Sto Rec Scr Fac Was Fac Low Low Dat Distress Signals 10 | . 3 . 2 3 . . 2 . . . . . Communications Jammed . | . . . . . . . . . . . . . Distress Signals . | . . . . . . . . . . . . . Times Spotted 207 | . 31 2 57 40 3 . 21 3 45 . . 5 Peak Tracking Total 5 | . 5 2 5 4 1 . 5 3 5 . . 1 Tactical Retreats 9 | . 4 . 2 . . . . 1 2 . . . Traps | -11 -10 -10 -9 -9 -9 -9 -6 -6 -6 -6 -6 -6 ------- Run | Yrd Mat Min Mat Sto Rec Scr Fac Was Fac Low Low Dat Traps Triggered 12 | . 1 . 4 . . . 3 . 4 . . . Indirectly . | . . . . . . . . . . . . . Trap Hack Attempts . | . . . . . . . . . . . . . Triggered . | . . . . . . . . . . . . . Disarmed . | . . . . . . . . . . . . . Reprogrammed . | . . . . . . . . . . . . . Reused . | . . . . . . . . . . . . . Traps Extracted . | . . . . . . . . . . . . . Installed . | . . . . . . . . . . . . . Triggered . | . . . . . . . . . . . . . Machines | -11 -10 -10 -9 -9 -9 -9 -6 -6 -6 -6 -6 -6 ---------- Run | Yrd Mat Min Mat Sto Rec Scr Fac Was Fac Low Low Dat Machines Disabled 52 | . 1 . 5 8 . . 10 . 26 1 . 1 Max in Single Turn 7 | . 1 . 4 1 . . 6 . 7 1 . 1 Garrison Access 1 | . . . . 1 . . . . . . . . Machines Repaired . | . . . . . . . . . . . . . Machines Dismantled 2 | . . . . 2 . . . . . . . . Machines Sabotaged . | . . . . . . . . . . . . . Overloaded Fab Kills . | . . . . . . . . . . . . . Hacking | -11 -10 -10 -9 -9 -9 -9 -6 -6 -6 -6 -6 -6 --------- Run | Yrd Mat Min Mat Sto Rec Scr Fac Was Fac Low Low Dat Machines Accessed 79 | . 9 . 13 12 14 3 4 . 20 1 . 3 Terminals 40 | . 7 . 9 9 6 . 1 . 8 . . . Fabricators 4 | . . . . . . . 1 . 3 . . . Repair Stations 3 | . . . 1 . . . . . 2 . . . Recycling Units 19 | . 2 . 2 2 8 . . . 5 . . . Scanalyzers 2 | . . . 1 . . . . . 1 . . . Garrison Access 4 | . . . . 1 . . 2 . 1 . . . Total Hacks 228 | . 37 . 43 26 42 13 8 . 34 1 . 24 Successful 143 | . 19 . 28 17 31 13 1 . 9 1 . 24 Failed 83 | . 17 . 14 9 11 . 7 . 25 . . . Catastrophic 21 | . 2 . 2 2 1 . 4 . 10 . . . Database Lockouts 2 | . 1 . 1 . . . . . . . . . Manual 120 | . 24 . 32 19 26 . 3 . 16 . . . Terminals 124 | . 32 . 32 21 25 . 3 . 11 . . . Fabricators 10 | . . . . . . . 2 . 8 . . . Repair Stations 8 | . . . 4 . . . . . 4 . . . Recycling Units 35 | . 5 . 2 4 17 . . . 7 . . . Scanalyzers 7 | . . . 5 . . . . . 2 . . . Garrison Access 6 | . . . . 1 . . 3 . 2 . . . Terminal Hacks 61 | . 6 . 5 4 7 13 . . 1 1 . 24 Record 13 | . . . . . . 7 . . . . . 6 Part Schematic 15 | . . . 1 . 4 . . . . . . 10 Robot Schematic 5 | . . . . . . . . . . . . 5 Robot Analysis 8 | . 1 . 1 . . 6 . . . . . . Prototype ID Bank 6 | . 2 . . . 1 . . . . . . 3 Open Door 2 | . . . . 1 . . . . . 1 . . Open DSF 1 | . . . . . . . . . 1 . . . Branch Access Points 2 | . 1 . 1 . . . . . . . . . Terminal Index 4 | . 1 . 1 1 1 . . . . . . . Alert Level 1 | . . . . 1 . . . . . . . . Unreport Threat 3 | . . . 1 1 1 . . . . . . . Hauler Manifests 1 | . 1 . . . . . . . . . . . Fabricator Hacks 2 | . . . . . . . . . 2 . . . Network Status 1 | . . . . . . . . . 1 . . . Build 1 | . . . . . . . . . 1 . . . Repair Station Hacks 4 | . . . 2 . . . . . 2 . . . Scan Component 2 | . . . 1 . . . . . 1 . . . Repair 2 | . . . 1 . . . . . 1 . . . Recycling Unit Hacks 8 | . 1 . . 1 6 . . . . . . . Retrieve Components 8 | . 1 . . 1 6 . . . . . . . Scanalyzer 3 | . . . 2 . . . . . 1 . . . Insert Component 1 | . . . . . . . . . 1 . . . Retrieve Study 2 | . . . 2 . . . . . . . . . Garrison Access Hacks 1 | . . . . 1 . . . . . . . . Seal Access 1 | . . . . 1 . . . . . . . . Unauthorized Hacks 64 | . 12 . 19 11 18 . 1 . 3 . . . Terminals 45 | . 10 . 16 9 10 . . . . . . . Track 2 | . . . 1 1 . . . . . . . . Botnet 15 | . 3 . 5 2 5 . . . . . . . Disrupt 1 | . . . . 1 . . . . . . . . Operators 3 | . 2 . 1 . . . . . . . . . Skim 24 | . 5 . 9 5 5 . . . . . . . Fabricators 2 | . . . . . . . 1 . 1 . . . Prioritize 1 | . . . . . . . . . 1 . . . Haulers 1 | . . . . . . . 1 . . . . . Repair Stations 1 | . . . 1 . . . . . . . . . Patch 1 | . . . 1 . . . . . . . . . Recycling Units 16 | . 2 . 2 2 8 . . . 2 . . . Tunnel 14 | . 2 . 2 2 8 . . . . . . . Fedlink 2 | . . . . . . . . . 2 . . . Scanalyzers . | . . . . . . . . . . . . . Garrison Access . | . . . . . . . . . . . . . Data Cores Recovered . | . . . . . . . . . . . . . Used . | . . . . . . . . . . . . . Hacking Detections 55 | . 6 . 8 8 10 . 4 . 19 . . . Full Trace Events 5 | . 1 . 2 1 . . 1 . . . . . Feedback Events . | . . . . . . . . . . . . . Feedback Blocked . | . . . . . . . . . . . . . Robot Schematics Acquired 5 | . . . . . . . . . . . . 5 Robots Built . | . . . . . . . . . . . . . Authchips . | . . . . . . . . . . . . . Time . | . . . . . . . . . . . . . Total Robot Build Rating . | . . . . . . . . . . . . . Part Schematics Acquired 15 | . . . 1 . 4 . . . . . . 10 Parts Built 2 | . . . . . . . . . 2 . . . Authchips . | . . . . . . . . . . . . . Time 95 | . . . . . . . . . 95 . . . Total Part Build Rating 10 | . . . . . . . . . 10 . . . Part Studies Acquired 2 | . . . 2 . . . . . . . . . Parts Repaired 2 | . . . 1 . . . . . 1 . . . Time 127 | . . . 32 . . . . . 95 . . . Parts Recycled . | . . . . . . . . . . . . . Recycled Matter . | . . . . . . . . . . . . . Retrieved Matter . | . . . . . . . . . . . . . Retrieved Components 24 | . . . . 10 14 . . . . . . . Parts Scanalyzed . | . . . . . . . . . . . . . Part Schematics Acquired . | . . . . . . . . . . . . . Parts Damaged . | . . . . . . . . . . . . . Bothacking | -11 -10 -10 -9 -9 -9 -9 -6 -6 -6 -6 -6 -6 ------------ Run | Yrd Mat Min Mat Sto Rec Scr Fac Was Fac Low Low Dat Used RIF Installer . | . . . . . . . . . . . . . Robots Hacked . | . . . . . . . . . . . . . Non-combat . | . . . . . . . . . . . . . Combat . | . . . . . . . . . . . . . Robot Hacks Applied . | . . . . . . . . . . . . . Relay Couplers Released . | . . . . . . . . . . . . . Fabnet Peak Effective % . | . . . . . . . . . . . . . Robots Rewired . | . . . . . . . . . . . . . Allies Hacked . | . . . . . . . . . . . . . Hacks Repelled . | . . . . . . . . . . . . . Allies | -11 -10 -10 -9 -9 -9 -9 -6 -6 -6 -6 -6 -6 -------- Run | Yrd Mat Min Mat Sto Rec Scr Fac Was Fac Low Low Dat Total Allies 2 | . . . . 2 . . . . . . . . Largest Group 2 | . . . . 2 1 . . . . . . . Highest-Rated Group 62 | . . . . 62 31 . . . . . . . Highest-Rated Ally 31 | . . . . 31 31 . . . . . . . Total Orders . | . . . . . . . . . . . . . Ally Attacks 56 | . . . . 55 1 . . . . . . . Total Damage 924 | . . . . 909 15 . . . . . . . Kills 14 | . . . . 13 1 . . . . . . . Allies Corrupted . | . . . . . . . . . . . . . Allies Melted . | . . . . . . . . . . . . . Intel | -11 -10 -10 -9 -9 -9 -9 -6 -6 -6 -6 -6 -6 ------- Run | Yrd Mat Min Mat Sto Rec Scr Fac Was Fac Low Low Dat Active Infowar (turns) 5440 | 34 231 242 79 . . . 424 90 2144 1053 1020 123 Sensors 2896 | . . . . . . . 98 90 512 1053 1020 123 Structural 153 | . 153 . . . . . . . . . . . Seismic 759 | 34 78 242 79 . . . 326 . . . . . T.N.C. 1783 | . . . . . . . . . 1783 . . . Jamming 181 | . . . . . . . . . 181 . . . Robot Analysis Total 8 | . 1 . 1 . . 6 . . . . . . Derelict Logs Recovered 6 | . . 3 . . . . . . . 1 2 . Drone Launches . | . . . . . . . . . . . . . Drone Recoveries . | . . . . . . . . . . . . . Exploration | -11 -10 -10 -9 -9 -9 -9 -6 -6 -6 -6 -6 -6 ------------- Run | Yrd Mat Min Mat Sto Rec Scr Fac Was Fac Low Low Dat Turns Passed 12973 | 127 1004 774 1935 1088 751 1268 688 143 2608 1086 1020 481 Spaces Moved 8451 | 58 550 508 1063 682 533 1189 369 70 1525 833 875 196 Core 3 | 3 . . . . . . . . . . . . Treads 323 | 55 268 . . . . . . . . . . . Legs 3273 | . . . . . . . . . 1369 833 875 196 Wheels 4852 | . 282 508 1063 682 533 1189 369 70 156 . . . Hover . | . . . . . . . . . . . . . Flight . | . . . . . . . . . . . . . Fastest Speed 50 | 50 90 120 105 105 105 105 105 135 114 114 114 112 Average Speed 115 | 154 125 120 105 105 105 105 112 148 132 118 114 120 Slowest Speed 260 | 160 240 120 105 120 105 105 135 180 190 188 114 260 Overloaded Moves . | . . . . . . . . . . . . . Propulsion Burnouts . | . . . . . . . . . . . . . Robots Hopped . | . . . . . . . . . . . . . Potential Cave-ins 7 | . . . . . . . . 6 . 1 . . Cave-ins Triggered 1 | . . . . . . . . 1 . . . . Exploration Rate (%) 70 | 4 80 96 90 91 97 85 14 67 44 77 89 78 Regions Visited 12 Branch Regions 7 Pre-discovered Areas 30 | . 2 2 7 4 12 . . . 1 . 1 1 Known Exits Taken 6 | . 1 . 1 . 1 . . . 1 1 1 . Unknown Exits Taken 4 | 1 . 1 . 1 . 1 . . . . . . Scrap Searched 19 | . . 3 . . . 5 . . . 6 5 . Spaces Dug 95 | . . . . 7 . . 14 5 49 17 3 . Terrain Destroyed 494 | . 21 . 27 51 . . 92 13 243 33 10 4 Melee . | . . . . . . . . . . . . . Projectile 155 | . . . . . . . 27 13 68 33 10 4 AOE 339 | . 21 . 27 51 . . 65 . 175 . . . Terrain Rammed . | . . . . . . . . . . . . . Walls Destroyed . | . . . . . . . . . . . . . Machines Disabled . | . . . . . . . . . . . . . Actions | -11 -10 -10 -9 -9 -9 -9 -6 -6 -6 -6 -6 -6 --------- Run | Yrd Mat Min Mat Sto Rec Scr Fac Was Fac Low Low Dat Total 10524 | 74 763 660 1654 838 699 1211 542 95 1844 893 885 366 Wait 1086 | . 123 144 416 17 157 13 42 8 63 17 . 86 Move 8440 | 57 549 507 1062 681 532 1188 369 69 1524 832 874 196 Hop . | . . . . . . . . . . . . . Pick Up 98 | 1 10 1 23 3 . 5 20 1 27 1 1 5 Fast Attach 32 | 7 5 . 3 3 . . 5 . 8 . . 1 Attach 40 | . 1 1 11 2 . . 6 1 13 . . 5 Detach 7 | . 3 . 1 1 . . 1 . 1 . . . Swap 124 | . 10 1 14 21 . . 19 3 36 10 2 8 Drop 76 | . 9 . 10 4 . 5 17 . 25 2 1 3 Fire 596 | 9 52 6 114 90 10 . 63 13 140 31 6 62 Melee . | . . . . . . . . . . . . . Ram . | . . . . . . . . . . . . . Kick 8 | . . . . . . . . . 7 . 1 . Crush 1 | . 1 . . . . . . . . . . . Escape Stasis . | . . . . . . . . . . . . . Rewire . | . . . . . . . . . . . . . Trap . | . . . . . . . . . . . . . Miscellaneous 16 | . . . . 16 . . . . . . . . Route ------- -11/Scrapyard -10/Materials (discovered 5 exits: *Mat x2 / *Min x2 / [*Sub]) -10/Mines (discovered 4 exits: *Mat x2 / [*Exi] / [*Sub]) -9/Materials (discovered 6 exits: *Mat x3 / *Min / *Sto x2) -9/Storage (discovered 2 exits: *Mat / *Rec) -9/Recycling (discovered 2 exits: [*Fac] / *Scr) -9/Scraptown (discovered 2 exits: *Fac x2) -6/Factory -6/Waste -6/Factory (discovered 4 exits: *Fac x3 / *Low) -6/Lower Caves -6/Lower Caves (discovered 2 exits: *Fac / *Dat) -6/Data Miner (discovered 1 exit: [*Pro]) History --------- Turn | Location | Event 43 | -11/Scrapyard | Discovered new exit (range 15) 128 | -11/Scrapyard | Entered Materials 313 | -10/Materials | Build established: Mutant 539 | -10/Materials | Discovered new exit (range 5) 636 | -10/Materials | Discovered new exit (range 14) 691 | -10/Materials | Discovered new exit (range 12) 856 | -10/Materials | Central database locked down 860 | -10/Materials | Discovered new exit (range 8) 945 | -10/Materials | Loaded intel: 1 repair station location 1011 | -10/Materials | Discovered new exit (range 6) 1047 | -10/Materials | Core integrity fell below 50% 1069 | -10/Materials | Identified exit to Mines 1097 | -10/Materials | Learned Storage trap positions 1132 | -10/Materials | Entered Mines 1140 | -10/Mines | Learned location of Zion (-7) 1163 | -10/Mines | Met a Derelict bent on vengeance 1202 | -10/Mines | Discovered new exit (range 6) 1270 | -10/Mines | Learned 2 Materials zone layouts 1340 | -10/Mines | Learned location of Storage (-9) 1343 | -10/Mines | Discovered new exit (range 4) 1400 | -10/Mines | Discovered new exit (range 6) 1462 | -10/Mines | Received a Rocket Launcher from a helpful Derelict 1498 | -10/Mines | Assembled infested the area 1508 | -10/Mines | Deemed a non-threat by the Exiles lab entrance 1509 | -10/Mines | Discovered new exit (range 5) 1647 | -10/Mines | Met 8R-AWN 1774 | -10/Mines | Found a hidden stash of uninstalled traps 1906 | -10/Mines | Entered Materials 1906 | -9/Materials | Evolved 2 slots: Propulsion x1, Utility x1 1907 | -9/Materials | Identified exit to Materials 1907 | -9/Materials | Identified exit to Storage 2075 | -9/Materials | Discovered new exit (range 14) 2430 | -9/Materials | Central database locked down 2539 | -9/Materials | Discovered exit to Materials (range 15) 2748 | -9/Materials | Repaired Arm. Wheel 3317 | -9/Materials | Discovered exit to Storage (range 16) 3360 | -9/Materials | Learned location of Mines (-9) 3363 | -9/Materials | Core integrity fell below 50% 3398 | -9/Materials | Identified exit to Mines 3540 | -9/Materials | Learned Storage trap positions 3611 | -9/Materials | Learned 2 Storage zone layouts 3754 | -9/Materials | Learned 4 Recycling zone layouts 3841 | -9/Materials | Entered Storage 3844 | -9/Storage | Loaded intel: 14 trap records 3878 | -9/Storage | Met a pair of Derelict thieves 3976 | -9/Storage | Used back door to open Recycling access 3976 | -9/Storage | Discovered new exit (range 5) 4195 | -9/Storage | Found Prototype Protection 4195 | -9/Storage | Identified Lgt. Regenerative Plating 4480 | -9/Storage | Garrison activated, responded to threat 4709 | -9/Storage | Learned 2 Storage zone layouts 4799 | -9/Storage | Learned Recycling recycling unit intel 4808 | -9/Storage | Learned location of 3 exits from Materials 4816 | -9/Storage | Learned 4 Materials zone layouts 4929 | -9/Storage | Entered Recycling 4929 | -9/Recycling | Accompanied by 1 ally 4931 | -9/Recycling | Loaded intel: 8 recycling unit locations 5227 | -9/Recycling | Discovered new exit (range 5) 5380 | -9/Recycling | Learned location of 1 exit from Storage 5436 | -9/Recycling | Identified exit to Scraptown 5482 | -9/Recycling | Learned 4 Materials zone layouts 5501 | -9/Recycling | Scanned before Scraplab entrance 5516 | -9/Recycling | Entered Scraplab 5538 | -9/Recycling | Learned Materials stockpile data 5550 | -9/Recycling | Learned Materials emergency access door positions 5551 | -9/Recycling | Learned location of 2 exits from Materials 5561 | -9/Recycling | Learned Materials repair station intel 5583 | -9/Recycling | Learned Storage trap positions 5680 | -9/Recycling | Entered Scraptown 5849 | -9/Scraptown | Visited Symbiants 5886 | -9/Scraptown | Visited CPS Storage 5897 | -9/Scraptown | Visited TADAMA 5920 | -9/Scraptown | Visited IN-MT5's Study 5944 | -9/Scraptown | Visited Awakened 5965 | -9/Scraptown | Visited Shadow of the Wyrm 6055 | -9/Scraptown | Discovered new exit (range 11) 6147 | -9/Scraptown | Heard Great Nut preacher, LISTEN AND RECITE! 6368 | -9/Scraptown | Visited UFD Registry 6368 | -9/Scraptown | Registered with UFD as "Protoface" 6387 | -9/Scraptown | Visited Derelict Rescue Squad 6412 | -9/Scraptown | Visited Analyses Database 6435 | -9/Scraptown | Visited Chapter 10 6452 | -9/Scraptown | Visited LU-1G1's Boring Crew 6481 | -9/Scraptown | Visited Scrap Suit Storage 6495 | -9/Scraptown | Visited Science Testing Area 6504 | -9/Scraptown | Visited DA-N13 Charitable Foundation 6509 | -9/Scraptown | Found DCF Scrap (27 items) 6537 | -9/Scraptown | Visited Scrapoid Pod Storage 6575 | -9/Scraptown | Visited Curators Association 6815 | -9/Scraptown | Found DRS Beacon 6876 | -9/Scraptown | Met Optimus 6876 | -9/Scraptown | Accepted into 0bPrime 6932 | -9/Scraptown | Discovered new exit (range 3) 6948 | -9/Scraptown | Entered Factory 6948 | -6/Factory | Evolved 6 slots: Power x1, Propulsion x2, Utility x3 7179 | -6/Factory | Garrison activated, responded to threat 7350 | -6/Factory | Found Prototype Processor 7350 | -6/Factory | Identified Exp. Targeting Computer 7386 | -6/Factory | Found Faulty Exp. Targeting Computer 7395 | -6/Factory | Found Exp. Targeting Computer 7636 | -6/Factory | Sucked down chute 7636 | -6/Factory | Entered Waste 7651 | -6/Waste | EMP discharged 7658 | -6/Waste | Spotted C-40 Crusher 7668 | -6/Waste | Spotted C-40 Crusher 7671 | -6/Waste | Spotted C-40 Crusher 7701 | -6/Waste | Spotted C-40 Crusher 7738 | -6/Waste | Crushed by falling debris 7738 | -6/Waste | System corruption reached 10% 7739 | -6/Waste | Discovered new exit (range 16) 7751 | -6/Waste | EMP discharged 7777 | -6/Waste | Identified exit to Factory 7779 | -6/Waste | Entered Factory 8252 | -6/Factory | Discovered new exit (range 15) 8269 | -6/Factory | Identified exit to Factory 8728 | -6/Factory | Garrison activated, responded to threat 8983 | -6/Factory | Lost 3 parts (1n1u1w) 9348 | -6/Factory | Core integrity fell below 50% 9350 | -6/Factory | Discovered exit to Factory (range 15) 9446 | -6/Factory | Loaded intel: 8 recycling unit locations 9529 | -6/Factory | First assault squad dispatched 9556 | -6/Factory | Learned location of Protoforge (-3) 9659 | -6/Factory | Fabricated Hpw. Shock Rifle? 9880 | -6/Factory | Lost 3 parts (1p1u1w) 10054 | -6/Factory | Discovered exit to Factory (range 14) 10267 | -6/Factory | Repaired Broken Adv. Force Field 10349 | -6/Factory | Garrison activated, responded to threat 10351 | -6/Factory | Discovered new exit (range 14) 10368 | -6/Factory | Identified exit to Lower Caves 10387 | -6/Factory | Entered Lower Caves 10526 | -6/Lower Caves | Encountered a Warlord checkpoint 10911 | -6/Lower Caves | Learned location of 1 exit from Factory 10921 | -6/Lower Caves | Discovered new exit (range 10) 10945 | -6/Lower Caves | Identified exit to Lower Caves 11473 | -6/Lower Caves | Entered another Lower Caves area 11621 | -6/Lower Caves | Learned Factory stockpile data 11670 | -6/Lower Caves | Discovered exit to Factory (range 8) 12112 | -6/Lower Caves | Encountered a Warlord checkpoint 12283 | -6/Lower Caves | Discovered new exit (range 12) 12491 | -6/Lower Caves | Identified exit to Data Miner 12493 | -6/Lower Caves | Entered Data Miner 12493 | -6/Data Miner | Discovered new exit (range 6) 12516 | -6/Data Miner | Met Data Miner 12538 | -6/Data Miner | Learned location of Section 7 (-3) 12538 | -6/Data Miner | Acquired the access code to Warlord's prototype stash 12551 | -6/Data Miner | Received God Mode back door access code from Data Miner 12619 | -6/Data Miner | Data Conduit disabled 12741 | -6/Data Miner | Core integrity fell below 20% 12762 | -6/Data Miner | System corruption reached 30% 12811 | -6/Data Miner | Lost 4 parts (3p1n) 12944 | -6/Data Miner | Lost 3 parts (1p1n1w) 12974 | -6/Data Miner | Self-destructed Last Messages --------------- 12833_ Acquired 10 matter. 12842_ Dropped Exp. Propulsion Shielding. 12845_ Acquired Lyr. Medium Armor Plating. 12847_ SRW#&X AIKQLIF=5VE%DIZZOQIPXKWUU8Y 12863_ 4PJFK6PWMPKRAB OCEPWZ4NFZEAHAB 12948_ System corrupted: Matter fused (-10). 12952_ Acquired Corrupted Prototype Storage. 12952_ Identified Adv. Energy Well. 12952_ Integrated Corrupted Adv. Energy Well (+3). 12963_ HSWI#XSSCA4>VB:R TM4 12965_ Lyr. Medium Armor Plating destroyed. Map ----- +----------------------------------------------------+ | | | | | | | | | | | | | | | | | | | | | | | | | ???????????????????????????? | | ???????????????????????????? | | ???????????????????????????? | | ???????????????????????????? | | ???????????????????????????? | | ????#################??????? | | ???##"""""""""""""""######?# | | #### """""" """""" # # | | #" """"""" | | # ;" """" | | ?#=!=]!"" | | ?#;!]="" | | ?##%!% " | | ??#@ =g""" | | ?#;! !" "" " ## | | ? #; """ """" ###? | | ###;# """""" "#####??? | | ??# ##;#####"## "#??????? | | ??######???#"### "#??????? | | ???????????#"### "#??????? | | ???????????#"## "#??????? | | ???????????#"## "#??????? | | ?????????????# "#??????? | | ?????????????### "#??????? | | ???????????????# "##?????? | | ??????????????## ""#?????? | | ?????????????## ""#?????? | | ??????????##"#"X ""#?????? | | ??????????""""" "####??? | | ??????????""""" X"""""??? | | ??????????##"#"X "##"#??? | | ???????????#?## X""""#??? | | ??????????????## "##"#??? | | ???????????????#######?????? | | ???????????????????????????? | | ???????????????????????????? | | ???????????????????????????? | | ???????????????????????????? | +----------------------------------------------------+ Best States ------------- Heat Dissipation 91 Coolant Potential 65 Energy Generation 37 Energy Capacity 600 Matter Stores 300 Matter Capacity 300 Sight Range 16 Robot Scan Range 15 Terrain Scan Density 10 Jamming Range 12 Armor Coverage 375 Propulsion Shielding 90 Evasion (%) 55 Targeting Accuracy 26 Core Analysis 6 Recoil Reduction 2 Item Schematics ----------------- Lrg. Storage Unit | -9/Materials | Hacked Hcp. Storage Unit | -9/Recycling | Hacked Med. Storage Unit | -9/Recycling | Hacked Arm. Wheel | -9/Recycling | Hacked System Restoration Module | -9/Recycling | Hacked Combat Drone Bay | -6/Data Miner | Free Lgt. Regenerative Plating | -6/Data Miner | Free Enh. Armored Leg | -6/Data Miner | Free Adv. EM Disruption Field | -6/Data Miner | Free Enh. Coil Gun | -6/Data Miner | Free Imp. Linear Gravjet | -6/Data Miner | Free Adv. Reaction Control System | -6/Data Miner | Free Adv. Datajack | -6/Data Miner | Free Adv. Drone Bay | -6/Data Miner | Free Adv. Point Defense System | -6/Data Miner | Free Robot Schematics ------------------ M-22 Extractor | -6/Data Miner | Free L-41 Fighter | -6/Data Miner | Free B-60 Warrior | -6/Data Miner | Free B-48 Gladiator | -6/Data Miner | Free G-67 Veteran | -6/Data Miner | Free Fabricated ------------ Hpw. Shock Rifle | x2 | -6/Factory | Preloaded Repaired ---------- Arm. Wheel | 32% | -9/Materials Adv. Force Field | 12% | -6/Factory | Broken Studied --------- Spread Laser | -9/Materials | Hacked Rocket Launcher | -9/Materials | Hacked Alien Tech Used ----------------- None Achievements -------------- None Challenges ------------ None Game ------ Seed AmuletHeartEngine Manual? 0 Play Time 01:20:18 Cumulative 464.4 hours Start 2025.10.30 @ 00:20:12 End 2025.10.30 @ 16:20:27 Sessions 3 Manual Loads 0 Difficulty Rogue Special Mode None Game No. 248 Rogue 248 Adventurer 0 Explorer 0 Win Type - Total 21 Types 13/1/5/1/0/0/0/1/0/0 Lore% 93 Gallery% 85 Achievement% 77 Wizard Run 0 Options --------- Layout 2 ASCII 0 Keyboard 1 Movement Vi Keybinds 0 Fullscreen 1 Font 28/Terminus Map View 50x52 Zoom Use 0% Tactical HUD 1 Map Filters NONE Filters NONE Steam 1 RUN: 1a16a256-db64-49e2-9046-8582affb5213